[Event "Late-Titled-Tuesday-Blitz-March-19-2024"]
[Site "Chess.com"]
[Date "2024.03.19"]
[Round "8"]
[White "mind1mover"]
[Black "newyorkmouse"]
[Result "0-1"]
[WhiteElo "2795"]
[BlackElo "2674"]
[TimeControl "180+1"]
[EndTime "15:28:43 PDT"]
[Termination "newyorkmouse won on time"]

1. e4 {[%clk 0:03:00.9]} 1... c6 {[%clk 0:02:56.5]} 2. d4 {[%clk 0:02:59.9]}
2... d5 {[%clk 0:02:56.8]} 3. exd5 {[%clk 0:03:00.8]} 3... cxd5 {[%clk
0:02:56.7]} 4. Bd3 {[%clk 0:02:59.8]} 4... Nc6 {[%clk 0:02:56.6]} 5. c3 {[%clk
0:03:00.4]} 5... Qc7 {[%clk 0:02:57.2]} 6. h3 {[%clk 0:02:55.9]} 6... g6 {[%clk
0:02:56.9]} 7. Nf3 {[%clk 0:02:50.4]} 7... Bf5 {[%clk 0:02:55.9]} 8. Be2 {[%clk
0:02:47.9]} 8... Nf6 {[%clk 0:02:54.8]} 9. O-O {[%clk 0:02:48.5]} 9... Bg7
{[%clk 0:02:53.3]} 10. Na3 {[%clk 0:02:45.4]} 10... a6 {[%clk 0:02:52.8]} 11.
Nc2 {[%clk 0:02:44]} 11... Ne4 {[%clk 0:02:50.7]} 12. Ne3 {[%clk 0:02:42.4]}
12... O-O-O {[%clk 0:02:48.4]} 13. Qb3 {[%clk 0:02:34.5]} 13... Na5 {[%clk
0:02:41.2]} 14. Qa4 {[%clk 0:02:30.8]} 14... Nc6 {[%clk 0:02:33.9]} 15. Qa3
{[%clk 0:02:21.2]} 15... e5 {[%clk 0:02:30.6]} 16. Nxf5 {[%clk 0:02:18]} 16...
gxf5 {[%clk 0:02:29.6]} 17. dxe5 {[%clk 0:02:07.4]} 17... Nxe5 {[%clk
0:02:27.9]} 18. Nxe5 {[%clk 0:02:04.3]} 18... Bxe5 {[%clk 0:02:19]} 19. Bf3
{[%clk 0:01:52.7]} 19... Rhg8 {[%clk 0:02:17]} 20. Be3 {[%clk 0:01:43.8]} 20...
Ng5 {[%clk 0:02:06.8]} 21. Bxg5 {[%clk 0:01:42.2]} 21... Rxg5 {[%clk 0:02:07]}
22. Rad1 {[%clk 0:01:39.1]} 22... Bd6 {[%clk 0:01:55]} 23. Qb3 {[%clk
0:01:37.6]} 23... Bc5 {[%clk 0:01:52.9]} 24. Rxd5 {[%clk 0:01:36.6]} 24... Rdg8
{[%clk 0:01:49.5]} 25. Qc2 {[%clk 0:01:27.4]} 25... Qc6 {[%clk 0:01:07]} 26.
Rd8+ {[%clk 0:01:16.5]} 26... Kxd8 {[%clk 0:01:07.1]} 27. Bxc6 {[%clk
0:01:17.4]} 27... bxc6 {[%clk 0:01:07.5]} 28. Qd3+ {[%clk 0:01:16.2]} 28... Kc7
{[%clk 0:01:05.5]} 29. Qf3 {[%clk 0:01:17.1]} 29... Rg3 {[%clk 0:01:02.7]} 30.
Qf4+ {[%clk 0:01:17.4]} 30... Kb7 {[%clk 0:00:51.7]} 31. Qxf5 {[%clk 0:01:06.7]}
31... Rxg2+ {[%clk 0:00:50.6]} 32. Kh1 {[%clk 0:01:06.8]} 32... Bd6 {[%clk
0:00:40.3]} 33. Qxf7+ {[%clk 0:01:06.2]} 33... Bc7 {[%clk 0:00:38.5]} 34. Qb3+
{[%clk 0:00:49.7]} 34... Kc8 {[%clk 0:00:37.8]} 35. f4 {[%clk 0:00:42.1]} 35...
Bxf4 {[%clk 0:00:26.3]} 36. Qxg8+ {[%clk 0:00:41]} 36... Rxg8 {[%clk 0:00:26]}
37. Rxf4 {[%clk 0:00:41.9]} 37... Rg3 {[%clk 0:00:25.5]} 38. Rf8+ {[%clk
0:00:36.1]} 38... Kc7 {[%clk 0:00:25.6]} 39. Rf7+ {[%clk 0:00:37]} 39... Kb6
{[%clk 0:00:26.1]} 40. Rxh7 {[%clk 0:00:37.9]} 40... Rd3 {[%clk 0:00:25.9]} 41.
Rg7 {[%clk 0:00:15.5]} 41... Rxh3+ {[%clk 0:00:24.8]} 42. Kg2 {[%clk 0:00:14.2]}
42... Rd3 {[%clk 0:00:25.4]} 43. Rf7 {[%clk 0:00:14.5]} 43... Rd1 {[%clk
0:00:23.6]} 44. Rf1 {[%clk 0:00:14.3]} 44... Rd2+ {[%clk 0:00:23.7]} 45. Rf2
{[%clk 0:00:14.9]} 45... Rd1 {[%clk 0:00:24.4]} 46. Kf3 {[%clk 0:00:15.5]} 46...
Rd3+ {[%clk 0:00:24.6]} 47. Ke2 {[%clk 0:00:14.6]} 47... Rd8 {[%clk 0:00:25.3]}
48. Rf3 {[%clk 0:00:15.2]} 48... Re8+ {[%clk 0:00:25.7]} 49. Re3 {[%clk
0:00:15.7]} 49... Rh8 {[%clk 0:00:26.3]} 50. Kd2 {[%clk 0:00:15.7]} 50... Rh2+
{[%clk 0:00:26.7]} 51. Re2 {[%clk 0:00:16.3]} 51... Rh1 {[%clk 0:00:27.4]} 52.
Kc2 {[%clk 0:00:16.7]} 52... Rh3 {[%clk 0:00:27.6]} 53. Rd2 {[%clk 0:00:17.2]}
53... Rh4 {[%clk 0:00:28]} 54. Kb3 {[%clk 0:00:17.6]} 54... Rg4 {[%clk
0:00:27.7]} 55. Rc2 {[%clk 0:00:17.8]} 55... Rg5 {[%clk 0:00:27.7]} 56. c4
{[%clk 0:00:17.1]} 56... Rg3+ {[%clk 0:00:27.7]} 57. Rc3 {[%clk 0:00:17.2]}
57... Rg5 {[%clk 0:00:26.2]} 58. Kb4 {[%clk 0:00:14.2]} 58... c5+ {[%clk
0:00:19.9]} 59. Ka4 {[%clk 0:00:14]} 59... Rg6 {[%clk 0:00:20.1]} 60. Rb3+
{[%clk 0:00:14.2]} 60... Ka7 {[%clk 0:00:19.3]} 61. Rd3 {[%clk 0:00:07.8]} 61...
Rg4 {[%clk 0:00:13.4]} 62. b3 {[%clk 0:00:04.2]} 62... Rg6 {[%clk 0:00:12.8]}
63. Rd5 {[%clk 0:00:03.7]} 63... Kb6 {[%clk 0:00:12.4]} 64. Rh5 {[%clk
0:00:04.1]} 64... Rf6 {[%clk 0:00:12.6]} 65. Rg5 {[%clk 0:00:04.3]} 65... Rd6
{[%clk 0:00:12.8]} 66. b4 {[%clk 0:00:02.5]} 66... Rd2 {[%clk 0:00:04.8]} 0-1

[Event "Late-Titled-Tuesday-Blitz-March-19-2024"]
[Site "Chess.com"]
[Date "2024.03.19"]
[Round "8"]
[White "Byniolus"]
[Black "TheKnightOfBosnia"]
[Result "1-0"]
[WhiteElo "2787"]
[BlackElo "2629"]
[TimeControl "180+1"]
[EndTime "15:28:43 PDT"]
[Termination "Byniolus won by resignation"]

1. d4 {[%clk 0:03:00.9]} 1... Nf6 {[%clk 0:02:59]} 2. Nf3 {[%clk 0:03:01.1]}
2... e6 {[%clk 0:02:58.8]} 3. Bf4 {[%clk 0:03:01.1]} 3... d5 {[%clk 0:02:58]} 4.
e3 {[%clk 0:02:59.3]} 4... c5 {[%clk 0:02:55.9]} 5. c3 {[%clk 0:02:59.3]} 5...
Nbd7 {[%clk 0:02:55.2]} 6. h3 {[%clk 0:02:57.7]} 6... Be7 {[%clk 0:02:54.3]} 7.
Nbd2 {[%clk 0:02:58]} 7... O-O {[%clk 0:02:54.3]} 8. Bd3 {[%clk 0:02:58.3]} 8...
Qb6 {[%clk 0:02:53]} 9. Rb1 {[%clk 0:02:55.3]} 9... Qa5 {[%clk 0:02:25.9]} 10.
a3 {[%clk 0:02:54.8]} 10... c4 {[%clk 0:02:24.1]} 11. Bc2 {[%clk 0:02:53.2]}
11... b5 {[%clk 0:02:24.1]} 12. e4 {[%clk 0:02:43.8]} 12... dxe4 {[%clk
0:02:23]} 13. Nxe4 {[%clk 0:02:44.7]} 13... Bb7 {[%clk 0:02:22]} 14. Nxf6+
{[%clk 0:02:40.7]} 14... Nxf6 {[%clk 0:02:19.6]} 15. O-O {[%clk 0:02:41.6]}
15... Qb6 {[%clk 0:02:06.5]} 16. Ne5 {[%clk 0:02:34.8]} 16... Rfd8 {[%clk
0:02:01.7]} 17. Qe2 {[%clk 0:02:16.9]} 17... a5 {[%clk 0:01:59.8]} 18. a4 {[%clk
0:02:09.6]} 18... Rac8 {[%clk 0:01:48.9]} 19. axb5 {[%clk 0:01:50.3]} 19... Qxb5
{[%clk 0:01:49.8]} 20. Ra1 {[%clk 0:01:46.3]} 20... g6 {[%clk 0:01:25.6]} 21.
Ra2 {[%clk 0:01:42]} 21... Bd5 {[%clk 0:00:58.3]} 22. Rfa1 {[%clk 0:01:34.8]}
22... Ra8 {[%clk 0:00:58.5]} 23. Bg5 {[%clk 0:01:23.8]} 23... Kg7 {[%clk
0:00:51.2]} 24. Qe3 {[%clk 0:01:15.8]} 24... Ng8 {[%clk 0:00:47.9]} 25. Bxe7
{[%clk 0:01:00.9]} 25... Nxe7 {[%clk 0:00:48.8]} 26. Ng4 {[%clk 0:01:01.2]}
26... Ng8 {[%clk 0:00:40.5]} 27. Qe5+ {[%clk 0:00:52.6]} 27... f6 {[%clk
0:00:39.7]} 28. Qg3 {[%clk 0:00:39.9]} 28... Qb7 {[%clk 0:00:34.4]} 29. Ne3
{[%clk 0:00:34.6]} 29... Ne7 {[%clk 0:00:30.6]} 30. h4 {[%clk 0:00:32.3]} 30...
Qb8 {[%clk 0:00:15.5]} 31. Qg4 {[%clk 0:00:21]} 31... h5 {[%clk 0:00:14.9]} 32.
Qe2 {[%clk 0:00:20]} 32... Nf5 {[%clk 0:00:13.9]} 33. Bxf5 {[%clk 0:00:11]}
33... exf5 {[%clk 0:00:12.5]} 34. Rxa5 {[%clk 0:00:07.3]} 34... Rxa5 {[%clk
0:00:11.8]} 35. Rxa5 {[%clk 0:00:08.2]} 35... Bf7 {[%clk 0:00:11]} 36. Nxc4
{[%clk 0:00:04.7]} 36... Re8 {[%clk 0:00:11.4]} 37. Ne3 {[%clk 0:00:05.1]} 37...
f4 {[%clk 0:00:11.9]} 38. Rb5 {[%clk 0:00:02.4]} 38... Qc8 {[%clk 0:00:10.7]}
39. Rc5 {[%clk 0:00:02.2]} 39... Qb7 {[%clk 0:00:10.6]} 40. b4 {[%clk
0:00:01.3]} 40... fxe3 {[%clk 0:00:10.4]} 41. fxe3 {[%clk 0:00:02.2]} 41... Qe4
{[%clk 0:00:10.5]} 42. Kf2 {[%clk 0:00:01.7]} 42... Qxh4+ {[%clk 0:00:10.3]} 43.
Kg1 {[%clk 0:00:01.7]} 43... Qe4 {[%clk 0:00:10.5]} 44. Kf2 {[%clk 0:00:01.7]}
44... Ra8 {[%clk 0:00:10.3]} 45. Ra5 {[%clk 0:00:01.1]} 45... Rxa5 {[%clk
0:00:09.8]} 46. bxa5 {[%clk 0:00:02]} 46... Qd5 {[%clk 0:00:10.1]} 47. a6 {[%clk
0:00:02]} 47... Qc4 {[%clk 0:00:09.2]} 48. Qxc4 {[%clk 0:00:02]} 48... Bxc4
{[%clk 0:00:10.1]} 49. a7 {[%clk 0:00:02.2]} 49... Bd5 {[%clk 0:00:10.7]} 50. c4
{[%clk 0:00:02.5]} 50... Ba8 {[%clk 0:00:10.8]} 51. d5 {[%clk 0:00:02.8]} 51...
Kf7 {[%clk 0:00:09.8]} 52. e4 {[%clk 0:00:03.2]} 52... Ke7 {[%clk 0:00:10]} 53.
c5 {[%clk 0:00:03.7]} 53... f5 {[%clk 0:00:08.5]} 54. exf5 {[%clk 0:00:04.5]}
54... gxf5 {[%clk 0:00:08.4]} 55. c6 {[%clk 0:00:05]} 55... Kd6 {[%clk
0:00:08.3]} 56. Kg3 {[%clk 0:00:05]} 56... Kc7 {[%clk 0:00:02.7]} 57. Kf4 {[%clk
0:00:05.4]} 57... Kb6 {[%clk 0:00:03.3]} 58. Kxf5 {[%clk 0:00:05.3]} 58... Kxa7
{[%clk 0:00:03.9]} 59. Ke6 {[%clk 0:00:05.9]} 59... Kb6 {[%clk 0:00:04.3]} 60.
Kd6 {[%clk 0:00:05.8]} 60... h4 {[%clk 0:00:04.2]} 61. Kd7 {[%clk 0:00:05.1]}
61... Kc5 {[%clk 0:00:04.4]} 62. c7 {[%clk 0:00:05.1]} 62... Bb7 {[%clk
0:00:05]} 63. d6 {[%clk 0:00:05.2]} 63... Kd5 {[%clk 0:00:04.7]} 64. Ke7 {[%clk
0:00:05.8]} 64... Kc6 {[%clk 0:00:04.1]} 65. d7 {[%clk 0:00:05.9]} 1-0

[Event "Late-Titled-Tuesday-Blitz-March-19-2024"]
[Site "Chess.com"]
[Date "2024.03.19"]
[Round "8"]
[White "Quattroporte300"]
[Black "Jahonas"]
[Result "0-1"]
[WhiteElo "2490"]
[BlackElo "2380"]
[TimeControl "180+1"]
[EndTime "15:28:44 PDT"]
[Termination "Jahonas won by resignation"]

1. e4 {[%clk 0:03:00.9]} 1... e5 {[%clk 0:02:59.6]} 2. Nf3 {[%clk 0:03:00.8]}
2... Nf6 {[%clk 0:02:59.5]} 3. Nc3 {[%clk 0:03:00.1]} 3... Nc6 {[%clk
0:02:59.2]} 4. d4 {[%clk 0:03:00.7]} 4... exd4 {[%clk 0:02:58.3]} 5. Nxd4 {[%clk
0:03:01.6]} 5... Nxd4 {[%clk 0:02:55.7]} 6. Qxd4 {[%clk 0:03:01]} 6... d6 {[%clk
0:02:54.8]} 7. Bg5 {[%clk 0:03:00.8]} 7... Be7 {[%clk 0:02:54.7]} 8. O-O-O
{[%clk 0:02:56.9]} 8... O-O {[%clk 0:02:51.8]} 9. h4 {[%clk 0:02:55.5]} 9... Be6
{[%clk 0:02:49]} 10. f3 {[%clk 0:02:53.6]} 10... c6 {[%clk 0:02:43.6]} 11. g4
{[%clk 0:02:53.7]} 11... Qa5 {[%clk 0:02:29.3]} 12. Kb1 {[%clk 0:02:47.2]} 12...
Rfd8 {[%clk 0:02:26.4]} 13. Bd2 {[%clk 0:02:46.8]} 13... Qc7 {[%clk 0:02:25.3]}
14. g5 {[%clk 0:02:40.2]} 14... Ne8 {[%clk 0:02:24]} 15. h5 {[%clk 0:02:37.2]}
15... d5 {[%clk 0:02:21.9]} 16. exd5 {[%clk 0:02:27.7]} 16... Bxd5 {[%clk
0:02:20.4]} 17. Nxd5 {[%clk 0:02:24.3]} 17... Rxd5 {[%clk 0:02:19.5]} 18. Qe4
{[%clk 0:02:15.1]} 18... Nd6 {[%clk 0:02:06.5]} 19. Qg4 {[%clk 0:02:05.6]} 19...
Bxg5 {[%clk 0:01:48.7]} 20. Bd3 {[%clk 0:02:05.6]} 20... Bxd2 {[%clk 0:01:42.4]}
21. Rxd2 {[%clk 0:02:04.7]} 21... Qe7 {[%clk 0:01:37]} 22. Rg1 {[%clk
0:01:59.8]} 22... Qf6 {[%clk 0:01:15.7]} 23. Rdg2 {[%clk 0:01:50.7]} 23... Ne8
{[%clk 0:01:07.6]} 24. a3 {[%clk 0:01:47.3]} 24... h6 {[%clk 0:01:04.4]} 25. Qe4
{[%clk 0:01:46.3]} 25... Kf8 {[%clk 0:01:00.6]} 26. Qh7 {[%clk 0:01:43.1]} 26...
Re5 {[%clk 0:00:52.5]} 27. Qh8+ {[%clk 0:01:30.5]} 27... Ke7 {[%clk 0:00:51.9]}
28. Rxg7 {[%clk 0:01:30.5]} 28... Rd8 {[%clk 0:00:39.8]} 29. Rxf7+ {[%clk
0:00:45.5]} 29... Kxf7 {[%clk 0:00:28.4]} 30. Qh7+ {[%clk 0:00:45.9]} 30... Ng7
{[%clk 0:00:24.7]} 31. Bc4+ {[%clk 0:00:37.6]} 31... Rdd5 {[%clk 0:00:24.1]} 32.
Bxd5+ {[%clk 0:00:35.2]} 32... Rxd5 {[%clk 0:00:22.2]} 33. Rg6 {[%clk
0:00:24.5]} 33... Rd1+ {[%clk 0:00:21.9]} 34. Ka2 {[%clk 0:00:24.8]} 34... Qd4
{[%clk 0:00:19.6]} 35. Rg4 {[%clk 0:00:09.3]} 35... Qd5+ {[%clk 0:00:19.2]} 36.
c4 {[%clk 0:00:09.8]} 36... Qe5 {[%clk 0:00:07.7]} 37. Qg6+ {[%clk 0:00:10.2]}
37... Kf8 {[%clk 0:00:07.2]} 38. Qxh6 {[%clk 0:00:10.5]} 38... Rd4 {[%clk
0:00:05.3]} 39. Rxd4 {[%clk 0:00:05.2]} 39... Qxd4 {[%clk 0:00:05.4]} 40. Qh8+
{[%clk 0:00:04.2]} 40... Kf7 {[%clk 0:00:05.7]} 41. b3 {[%clk 0:00:04.5]} 41...
Qd2+ {[%clk 0:00:05.2]} 42. Kb1 {[%clk 0:00:04.9]} 42... Qd1+ {[%clk 0:00:04.7]}
43. Kb2 {[%clk 0:00:05.6]} 43... Qe2+ {[%clk 0:00:05.1]} 44. Kb1 {[%clk
0:00:05.3]} 44... Qxf3 {[%clk 0:00:05]} 45. Qd8 {[%clk 0:00:04.2]} 45... Qf5+
{[%clk 0:00:04.3]} 46. Kb2 {[%clk 0:00:04.3]} 46... Qf6+ {[%clk 0:00:04.3]} 47.
Qxf6+ {[%clk 0:00:03.6]} 47... Kxf6 {[%clk 0:00:05.2]} 48. h6 {[%clk 0:00:04.2]}
48... Ne6 {[%clk 0:00:04.3]} 49. Kc3 {[%clk 0:00:04.7]} 49... Kg6 {[%clk
0:00:03.4]} 50. Kd3 {[%clk 0:00:04.7]} 50... Kxh6 {[%clk 0:00:03.5]} 51. b4
{[%clk 0:00:05]} 51... Kg7 {[%clk 0:00:04]} 52. Ke4 {[%clk 0:00:05.7]} 52... Kf6
{[%clk 0:00:04.6]} 53. a4 {[%clk 0:00:05.5]} 53... b6 {[%clk 0:00:04.3]} 54. a5
{[%clk 0:00:05.8]} 54... bxa5 {[%clk 0:00:04.2]} 55. bxa5 {[%clk 0:00:06.5]}
55... Nc7 {[%clk 0:00:03.7]} 56. Kd4 {[%clk 0:00:06.8]} 56... Ke6 {[%clk
0:00:03.5]} 57. Kc5 {[%clk 0:00:07.5]} 57... Kd7 {[%clk 0:00:03.9]} 58. Kb4
{[%clk 0:00:05.3]} 58... Kd6 {[%clk 0:00:04.2]} 59. Ka4 {[%clk 0:00:03.3]} 59...
Kc5 {[%clk 0:00:04.6]} 60. Kb3 {[%clk 0:00:03.9]} 60... Ne6 {[%clk 0:00:05]} 61.
Kc3 {[%clk 0:00:03.1]} 61... Nd4 {[%clk 0:00:05.1]} 62. Kd3 {[%clk 0:00:03.7]}
62... Nf5 {[%clk 0:00:04.7]} 63. Kc3 {[%clk 0:00:02.7]} 63... Nd6 {[%clk
0:00:05.6]} 64. Kb3 {[%clk 0:00:02.7]} 64... Nxc4 {[%clk 0:00:06.5]} 65. Ka4
{[%clk 0:00:03.3]} 65... Nd6 {[%clk 0:00:06.5]} 66. a6 {[%clk 0:00:03.7]} 66...
Kb6 {[%clk 0:00:06.5]} 67. Kb4 {[%clk 0:00:04.3]} 67... Kxa6 {[%clk 0:00:06.9]}
68. Kc5 {[%clk 0:00:05.1]} 68... Kb7 {[%clk 0:00:06.9]} 0-1

[Event "Late-Titled-Tuesday-Blitz-March-19-2024"]
[Site "Chess.com"]
[Date "2024.03.19"]
[Round "8"]
[White "mightysmasher"]
[Black "Jagerrmeisterr"]
[Result "1-0"]
[WhiteElo "2605"]
[BlackElo "2738"]
[TimeControl "180+1"]
[EndTime "15:28:50 PDT"]
[Termination "mightysmasher won by checkmate"]

1. e4 {[%clk 0:03:00.9]} 1... c6 {[%clk 0:02:59.2]} 2. d4 {[%clk 0:03:00.8]}
2... d5 {[%clk 0:02:59.6]} 3. Nd2 {[%clk 0:03:01.4]} 3... dxe4 {[%clk
0:02:59.6]} 4. Nxe4 {[%clk 0:03:02.3]} 4... Nf6 {[%clk 0:02:59.4]} 5. Nxf6+
{[%clk 0:03:02.8]} 5... gxf6 {[%clk 0:03:00]} 6. c3 {[%clk 0:03:03.7]} 6... Bf5
{[%clk 0:02:59.9]} 7. Bd3 {[%clk 0:03:03.8]} 7... Bxd3 {[%clk 0:02:58.7]} 8.
Qxd3 {[%clk 0:03:04.7]} 8... Qd5 {[%clk 0:02:59.4]} 9. Nf3 {[%clk 0:03:04.4]}
9... Nd7 {[%clk 0:02:59.2]} 10. Be3 {[%clk 0:03:03.9]} 10... O-O-O {[%clk
0:02:58]} 11. c4 {[%clk 0:02:59.1]} 11... Qh5 {[%clk 0:02:30.4]} 12. O-O-O
{[%clk 0:02:57.4]} 12... Rg8 {[%clk 0:02:30.9]} 13. Qa3 {[%clk 0:02:47.1]} 13...
Rxg2 {[%clk 0:02:21.6]} 14. Ne1 {[%clk 0:02:27.1]} 14... Rg4 {[%clk 0:02:02.7]}
15. Qxa7 {[%clk 0:02:22.7]} 15... Bh6 {[%clk 0:01:59.8]} 16. Nd3 {[%clk
0:02:08.1]} 16... Re4 {[%clk 0:01:17.8]} 17. Rhe1 {[%clk 0:01:22.7]} 17... c5
{[%clk 0:01:01.8]} 18. Qa8+ {[%clk 0:01:07.4]} 18... Kc7 {[%clk 0:00:55.2]} 19.
Qa5+ {[%clk 0:01:05.3]} 19... Kc8 {[%clk 0:00:54.8]} 20. Qa8+ {[%clk 0:00:36.3]}
20... Kc7 {[%clk 0:00:53.3]} 21. Qa5+ {[%clk 0:00:32.6]} 21... Nb6 {[%clk
0:00:32.8]} 22. dxc5 {[%clk 0:00:22.8]} 22... Bxe3+ {[%clk 0:00:31.2]} 23. fxe3
{[%clk 0:00:22.3]} 23... Rxc4+ {[%clk 0:00:25.2]} 24. Kb1 {[%clk 0:00:22.1]}
24... Qg6 {[%clk 0:00:10.2]} 25. cxb6+ {[%clk 0:00:19.1]} 25... Kc6 {[%clk
0:00:10.7]} 26. Qa3 {[%clk 0:00:16.2]} 26... Rd6 {[%clk 0:00:09.4]} 27. Ka1
{[%clk 0:00:14.9]} 27... Qf5 {[%clk 0:00:08.8]} 28. Qb3 {[%clk 0:00:12.7]} 28...
Qb5 {[%clk 0:00:07.5]} 29. Qxb5+ {[%clk 0:00:12.4]} 29... Kxb5 {[%clk
0:00:08.2]} 30. Nf4 {[%clk 0:00:12.1]} 30... Rdc6 {[%clk 0:00:07.7]} 31. a3
{[%clk 0:00:11.4]} 31... Re4 {[%clk 0:00:07.3]} 32. Nd5 {[%clk 0:00:11.4]} 32...
Re5 {[%clk 0:00:04.7]} 33. Nc3+ {[%clk 0:00:10.4]} 33... Kxb6 {[%clk 0:00:05.1]}
34. Rd4 {[%clk 0:00:10.4]} 34... f5 {[%clk 0:00:04.4]} 35. Rf1 {[%clk
0:00:09.8]} 35... e6 {[%clk 0:00:04.2]} 36. Rff4 {[%clk 0:00:09.3]} 36... Kc7
{[%clk 0:00:04.7]} 37. Rh4 {[%clk 0:00:09.1]} 37... Rxe3 {[%clk 0:00:05.1]} 38.
Rxh7 {[%clk 0:00:09.2]} 38... Re1+ {[%clk 0:00:05.3]} 39. Ka2 {[%clk 0:00:09.1]}
39... e5 {[%clk 0:00:04.3]} 40. Rxf7+ {[%clk 0:00:09.2]} 40... Kc8 {[%clk
0:00:04.8]} 41. Rb4 {[%clk 0:00:08.4]} 41... b6 {[%clk 0:00:04.9]} 42. Ra4
{[%clk 0:00:08.4]} 42... Kb8 {[%clk 0:00:05]} 43. Rxf5 {[%clk 0:00:08.1]} 43...
Rd6 {[%clk 0:00:03.6]} 44. Rh4 {[%clk 0:00:07.8]} 44... Kb7 {[%clk 0:00:03.8]}
45. Rh7+ {[%clk 0:00:07.9]} 45... Kc6 {[%clk 0:00:04.2]} 46. Rff7 {[%clk
0:00:08]} 46... Kc5 {[%clk 0:00:04.9]} 47. Rc7+ {[%clk 0:00:08]} 47... Kd4
{[%clk 0:00:05.5]} 48. Nb5+ {[%clk 0:00:08.4]} 48... Kd5 {[%clk 0:00:06]} 49.
Nxd6 {[%clk 0:00:09.3]} 49... Kxd6 {[%clk 0:00:06.9]} 50. Rhd7+ {[%clk
0:00:09.2]} 50... Ke6 {[%clk 0:00:07.5]} 51. Rd2 {[%clk 0:00:09.6]} 51... e4
{[%clk 0:00:07.2]} 52. Rc6+ {[%clk 0:00:09.8]} 52... Ke5 {[%clk 0:00:07.9]} 53.
Rxb6 {[%clk 0:00:10.7]} 53... e3 {[%clk 0:00:08.6]} 54. Rg2 {[%clk 0:00:10.4]}
54... Rf1 {[%clk 0:00:07.9]} 55. Re2 {[%clk 0:00:10.1]} 55... Ke4 {[%clk
0:00:07.7]} 56. Re6+ {[%clk 0:00:10.2]} 56... Kd3 {[%clk 0:00:07.8]} 57. R6xe3+
{[%clk 0:00:11.1]} 57... Kc4 {[%clk 0:00:08.4]} 58. Rc3+ {[%clk 0:00:11.2]}
58... Kd4 {[%clk 0:00:08.8]} 59. Rd2+ {[%clk 0:00:11.6]} 59... Ke4 {[%clk
0:00:09.4]} 60. a4 {[%clk 0:00:11.2]} 60... Rf5 {[%clk 0:00:09.5]} 61. Rc4+
{[%clk 0:00:10.6]} 61... Ke3 {[%clk 0:00:10]} 62. Rdc2 {[%clk 0:00:11.1]} 62...
Ra5 {[%clk 0:00:09.8]} 63. b4 {[%clk 0:00:10.6]} 63... Rxa4+ {[%clk 0:00:09.8]}
64. Kb3 {[%clk 0:00:11.1]} 64... Ra1 {[%clk 0:00:10.5]} 65. b5 {[%clk
0:00:11.6]} 65... Rb1+ {[%clk 0:00:10.7]} 66. Rb2 {[%clk 0:00:11.3]} 66... Ra1
{[%clk 0:00:10.7]} 67. b6 {[%clk 0:00:11.5]} 67... Ra6 {[%clk 0:00:10.6]} 68. b7
{[%clk 0:00:10.6]} 68... Rb6+ {[%clk 0:00:08.9]} 69. Rb4 {[%clk 0:00:11]} 69...
Rd6 {[%clk 0:00:07.9]} 70. b8=Q {[%clk 0:00:10.1]} 70... Rd3+ {[%clk 0:00:08.4]}
71. Ka2 {[%clk 0:00:10.5]} 71... Kf3 {[%clk 0:00:08.4]} 72. Qg3# {[%clk
0:00:10.5]} 1-0